Cogmind - Beta 13 @@@ ROGUE MODE // 2024.05.19 @ 01:33:35 Player: Toa of Guts Result: Destroyed by S-43 Plague with Heavy Machine Gun Performance ------------- Evolutions (6) 3000 Regions Visited (13) 2600 Robots Destroyed (102) 510 Value Destroyed (2900) 2900 Prototype IDs (21) 420 Alien Tech Used (2) 400 Bonus (214) 214 TOTAL SCORE: 10044 Bonus ------- Met Zhirov 300 Friendly Fire -86 Cogmind --------- Core Integrity 0/1150 Matter 52/300 Energy 25/100 System Corruption 10% Temperature Cool (0) Movement Core (400) Ox7 Location -3/Proximity Caves Parts ------- > --- POWER (2) -------- (None) > --- PROPULSION (5) --- (None) > --- UTILITY (9) ------ Medium Storage Unit Advanced Targeting Computer Improved Power Shielding Experimental Utility Shielding Advanced Hacking Suite > --- WEAPON (3) ------- HERF Cannon > --- INVENTORY (10) --- Advanced Power Amplifier Advanced Heat Sink Improved Reaction Control System Beamcaster Railgun Peak State ------------ > --- POWER ------------ Neutrino Core Light Antimatter Reactor > --- PROPULSION ------- Flexi-carbon Leg Flexi-carbon Leg Flexi-carbon Leg Myomer Leg Myomer Leg > --- UTILITY ---------- Advanced Heat Sink Improved Coolant Injector Large Storage Unit Seismic Detector Weapon Cycler Advanced Reaction Control System Improved Medium Armor Plating Improved Medium Armor Plating Improved Focal Shield > --- WEAPON ----------- KE Penetrator Railgun Railgun > --- INVENTORY -------- Micro Fission Core Flexi-carbon Leg Myomer Leg Myomer Leg Large Matter Pod Advanced Visual Processing Unit Advanced Transmission Jammer Improved Medium Armor Plating Heavy Plasma Cannon KE Penetrator KE Penetrator Magnetic Acceleration Cannon Hardcell Cannon Grenade Launcher Chainsword [Rating: 107] Favorites ----------- Power Heavy Ion Engine Engine Heavy Ion Engine Power Core Neutrino Core Reactor Light Antimatter Reactor Propulsion Light Treads Treads Light Treads Leg Myomer Leg Wheel Wheel Hover Unit Improved Antigrav System Utility Hardened Light Armor Plating Device Seismic Detector Storage Large Storage Unit Processor Advanced Targeting Computer Hackware Advanced Hacking Suite Protection Hardened Light Armor Plating Weapon Improved Assault Rifle Energy Gun Advanced Beam Rifle Energy Cannon Heavy Plasma Cannon Ballistic Gun Improved Assault Rifle Ballistic Cannon Magnetic Acceleration Cannon Launcher Grenade Launcher Special Weapon Remote Datajack Impact Weapon Hammer Slashing Weapon Chainsword Special Melee Weapon Advanced Datajack Build | -11 -10 -9 -8 -7 -6 -5 -4 -4 -4 -4 -4 -4 -3 ------- Run | Yrd Mat Mat Mat Fac Fac Fac Fac Was Fac Upp Upp Zhi Pro Slots Evolved 12 | . . 2 2 2 2 2 2 . . . . . . Power 1 | . . . . 1 . . . . . . . . . Propulsion 3 | . . 1 . . 1 . 1 . . . . . . Utility 7 | . . . 2 1 1 2 1 . . . . . . Weapon 1 | . . 1 . . . . . . . . . . . Parts Attached 131 | 6 8 21 5 2 5 11 28 10 10 7 10 3 5 Power 12 | 1 . 2 1 1 1 . 3 2 . . 1 . . Engine 5 | 1 . 2 1 . 1 . . . . . . . . Core 4 | . . . . 1 . . 1 1 . . 1 . . Reactor 3 | . . . . . . . 2 1 . . . . . Propulsion 33 | 2 4 8 . . 2 4 6 1 4 . 2 . . Treads 6 | . . 4 . . 2 . . . . . . . . Leg 15 | . 2 . . . . 4 6 1 2 . . . . Wheel 8 | 2 2 4 . . . . . . . . . . . Hover 4 | . . . . . . . . . 2 . 2 . . Flight . | . . . . . . . . . . . . . . Utility 45 | 1 4 3 2 1 2 5 10 3 2 3 5 3 1 Device 18 | . 2 . 1 1 1 1 7 1 . 1 2 1 . Storage 9 | 1 2 1 . . 1 1 . . . 1 2 . . Processor 2 | . . . . . . . . 1 1 . . . . Hackware 2 | . . . . . . . . . . 1 . 1 . Protection 14 | . . 2 1 . . 3 3 1 1 . 1 1 1 Artifact . | . . . . . . . . . . . . . . Weapon 41 | 2 . 8 2 . . 2 9 4 4 4 2 . 4 Energy Gun 7 | 1 . 1 2 . . . . . . 1 1 . 1 Energy Cannon 2 | . . . . . . . . . 1 . . . 1 Ballistic Gun 18 | 1 . 7 . . . . 6 2 1 1 . . . Ballistic Cannon 1 | . . . . . . 1 . . . . . . . Launcher 4 | . . . . . . . 1 1 1 1 . . . Special Weapon 1 | . . . . . . . . . . 1 . . . Impact Weapon 1 | . . . . . . 1 . . . . . . . Slashing Weapon 5 | . . . . . . . 2 . . . 1 . 2 Piercing Weapon . | . . . . . . . . . . . . . . Special Melee Weapon 2 | . . . . . . . . 1 1 . . . . Unidentified Prototypes 4 | . . 1 . . . . . . . . . 3 . Parts Lost 35 | . . 4 . . . 4 1 11 . 2 10 . 3 Power 3 | . . 1 . . . . . 1 . . 1 . . Propulsion 15 | . . 2 . . . 3 . 4 . . 5 . 1 Utility 11 | . . . . . . 1 1 5 . 1 3 . . Weapon 6 | . . 1 . . . . . 1 . 1 1 . 2 Highest Loss Streak 9 | . . 2 . . . 3 1 8 . 2 9 . 3 To Critical Strikes . | . . . . . . . . . . . . . . Average Slot Usage (%) 85 | . 92 99 99 94 96 91 98 73 41 49 60 27 27 Engine 6 | . 14 10 9 7 10 11 1 . . . . . . Core 1 | . . . . 2 2 . 4 4 . . . . . Treads 7 | . . 6 27 23 26 18 . . . . . . . Leg 8 | . 15 . . . . 3 25 19 8 10 8 . . Wheel 6 | . 12 26 . . . . . . . . . . . Hover 2 | . . . . . . . . . 7 10 11 5 4 Device 11 | . 6 1 8 14 16 19 29 20 . 2 7 3 . Storage 7 | . 14 11 9 7 6 5 5 3 . 2 7 5 5 Processor 1 | . . . . . . . . 3 4 5 5 5 5 Protection 8 | . . 9 18 15 13 12 10 7 5 1 1 5 5 Energy Gun 4 | . 14 5 9 7 6 5 . . . 3 4 . . Ballistic Gun 13 | . 14 27 18 15 13 9 13 8 4 1 . . . Naked Turns 61 | . . . . . . . . 61 . . . . . Heaviest Build 102 | 12 88 102 46 51 76 85 88 85 19 29 49 15 11 Greatest Support 110 | 26 26 60 60 60 83 83 110 110 50 50 50 12 12 Greatest Overweight (x) 5 | 1 3 5 . . . 1 . . . 4 2 1 3 Average Overweight (x) . | . 1 2 . . . . . . . . . . . Largest Inventory Capacity 25 | 8 25 25 15 15 20 20 15 15 5 10 10 10 10 Average Capacity 15 | 6 15 24 15 15 17 18 15 12 5 7 9 10 10 Most Carried 25 | 6 15 25 15 15 18 18 15 15 5 10 10 10 9 Average Carried 14 | 3 9 22 14 14 15 16 14 11 2 5 9 8 8 Final Capacity 25 | 8 25 15 15 15 20 15 15 5 5 10 10 10 10 Final Carried 18 | 6 15 15 15 15 18 15 15 5 3 10 7 9 5 Class Distribution -------------------- 42% | Scavenger-Tank 19% | Tank 18% | Mutant 11% | Gunner 4% | Derelict-Gunner 3% | Scavenger-Mutant Dominant Class ---------------- Mutant | -10/Materials Tank | -9/Materials Scavenger-Tank | -8/Materials Scavenger-Tank | -7/Factory Scavenger-Tank | -6/Factory Scavenger-Tank | -5/Factory Scavenger-Tank | -4/Factory Scavenger-Tank | -4/Waste Mutant | -4/Factory Gunner | -4/Upper Caves Derelict-Gunner | -4/Upper Caves Mutant | -4/Zhirov Mutant | -3/Proximity Caves Resources | -11 -10 -9 -8 -7 -6 -5 -4 -4 -4 -4 -4 -4 -3 ----------- Run | Yrd Mat Mat Mat Fac Fac Fac Fac Was Fac Upp Upp Zhi Pro Matter Collected 3501 | 188 190 1032 224 32 92 146 860 407 . 107 208 . 15 Remotely 12 | . . . . . . . . . . 12 . . . Salvage Created 4937 | . 285 1710 578 54 126 319 943 711 . 142 54 . 15 Parts 239 | . 14 100 31 1 10 15 58 6 . 2 2 . . Haulers Intercepted 10 | . 1 6 3 . . . . . . . . . . Recyclers Shooed 4 | . . . . 1 1 . 2 . . . . . . Parts Field Recycled . | . . . . . . . . . . . . . . Retrieved Matter . | . . . . . . . . . . . . . . Parts Self-Destructed 10 | . . . . . . . . . . 4 6 . . Prevented . | . . . . . . . . . . . . . . Kills | -11 -10 -9 -8 -7 -6 -5 -4 -4 -4 -4 -4 -4 -3 ------- Run | Yrd Mat Mat Mat Fac Fac Fac Fac Was Fac Upp Upp Zhi Pro Combat Hostiles Destroyed 65 | . 5 26 8 . 2 2 14 3 . 3 2 . . Guns 61 | . 5 26 8 . 2 2 14 1 . 1 2 . . Cannons 1 | . . . . . . . . . . 1 . . . AOE 3 | . . . . . . . . 2 . 1 . . . Classes Destroyed 12 | . 3 5 1 . . . 2 1 . . . . . Worker 9 | . . 2 2 . . 2 3 . . . . . . Builder 3 | . . 1 1 . 1 . . . . . . . . Hauler 10 | . 1 6 3 . . . . . . . . . . Recycler 6 | . . 3 . 1 . 1 1 . . . . . . Mechanic 1 | . . . . . . . 1 . . . . . . Watcher 8 | . 1 5 2 . . . . . . . . . . Swarmer 18 | . . 7 3 . . . 5 . . 1 2 . . Grunt 25 | . 5 11 4 . 2 . 2 . . 1 . . . Sentry 14 | . . 8 . . . 1 4 . . 1 . . . Hunter 2 | . . . 1 . . 1 . . . . . . . Programmer 3 | . . . . . . . 3 . . . . . . Compactor 3 | . . . . . . . . 3 . . . . . Decomposer 2 | . . . . . . . . . . 1 . . 1 Packrat 1 | . . . . . . . . . . 1 . . . Best Kill Streak 7 | . 3 7 5 1 2 3 7 1 . 2 2 . . Combat Bots Only 5 | . 2 5 3 . 2 1 4 1 . 2 2 . . Max Kills in Single Turn 2 | . 1 2 2 1 1 1 2 1 . 1 1 . 1 Gunslinging 1 | . . . 1 . . . . . . . . . . Exploded 1 | . . . . . . . . 1 . 1 . . . Melee . | . . . . . . . . . . . . . . Uniques/NPCs Destroyed . | . . . . . . . . . . . . . . Combat | -11 -10 -9 -8 -7 -6 -5 -4 -4 -4 -4 -4 -4 -3 -------- Run | Yrd Mat Mat Mat Fac Fac Fac Fac Was Fac Upp Upp Zhi Pro Hostile Shots Fired 485 | . 39 108 25 1 4 73 48 9 2 43 113 . 20 Missed 139 | . 10 26 7 . 1 25 14 . 2 10 40 . 4 Damage Taken 6392 | . 339 955 258 37 57 978 740 535 . 619 1516 . 358 Core 1504 | . 71 137 42 . . 107 . 99 . 61 809 . 178 Absorbed by Shields . | . . . . . . . . . . . . . . Redirected to Shielding 100 | . . . . . . . . . . 62 . . 38 Ignored by Resistances 110 | . . . . . . . 56 54 . . . . . Core Remaining (%) 88 | 100 71 65 92 100 100 89 . . . . . . . Volleys Fired 281 | . 40 88 29 2 7 16 35 33 6 18 5 . 2 Largest 3 | . 2 3 3 3 3 3 3 3 2 2 1 . 1 Hottest 165 | . 60 100 107 107 107 137 103 101 125 165 75 . 75 Shots Fired 696 | . 80 263 87 6 21 46 105 45 12 25 4 . 2 Gun 641 | . 80 263 87 6 21 38 104 23 6 7 4 . 2 Cannon 23 | . . . . . . 8 . . 6 9 . . . Launcher 32 | . . . . . . . 1 22 . 9 . . . Special . | . . . . . . . . . . . . . . Kinetic 507 | . 40 224 58 4 14 31 104 23 6 3 . . . Thermal 157 | . 40 39 29 2 7 15 . . 6 13 4 . 2 Explosive 32 | . . . . . . . 1 22 . 9 . . . Electromagnetic . | . . . . . . . . . . . . . . Robot Hit Streak 20 | . 7 20 20 9 15 13 18 11 4 3 7 . 1 Robot Miss Streak 5 | . 2 4 1 . 1 1 5 3 2 2 . . 1 Penetration Max 1 | . . . . . . . 1 1 . . . . . Secondary Targets 6 | . . . 3 . . . 3 . . . . . . Max Gunslinging Chain 2 | . . . 2 . . . 1 . . . . . . Shots Hit Robots 451 | . 55 165 61 4 15 32 64 34 6 8 4 . 3 Core Hits 203 | . 18 65 26 2 9 15 37 18 1 9 2 . 1 Critical Kills 3 | . 1 2 . . . . . . . . . . . Critical Parts Destroyed 6 | . . . 1 . . 2 3 . . . . . . Critical Strikes 13 | . 1 3 3 . . 3 3 . . . . . . Burn 3 | . . . 2 . . 1 . . . . . . . Destroy 10 | . 1 3 1 . . 2 3 . . . . . . Melee Attacks 5 | . . . . . . 1 1 . . . 1 . 2 Impact 1 | . . . . . . 1 . . . . . . . Slashing 4 | . . . . . . . 1 . . . 1 . 2 Piercing . | . . . . . . . . . . . . . . Sneak Attacks 1 | . . . . . . . . . . . . . 1 Combat Hostiles . | . . . . . . . . . . . . . . Follow-up Attacks . | . . . . . . . . . . . . . . Damage Inflicted 10088 | . 525 2437 987 70 300 697 1917 2224 138 596 84 . 113 Guns 7555 | . 525 2427 983 70 297 546 1888 528 74 112 84 . 21 Cannons 312 | . . . . . . 151 . . 64 97 . . . Explosions 2112 | . . . . . . . 29 1696 . 387 . . . Melee 92 | . . . . . . . . . . . . . 92 Ramming 17 | . . 10 4 . 3 . . . . . . . . Kinetic 6122 | . 242 2114 582 30 177 437 1888 528 74 50 . . . Thermal 1745 | . 283 313 401 40 120 260 . . 64 159 84 . 21 Explosive 2112 | . . . . . . . 29 1696 . 387 . . . Electromagnetic . | . . . . . . . . . . . . . . Impact . | . . . . . . . . . . . . . . Slashing 92 | . . . . . . . . . . . . . 92 Piercing . | . . . . . . . . . . . . . . Highest Corruption 10 | . . . . . . . 4 4 4 4 10 10 10 Average Corruption 4 | . . . . . . . 2 4 4 4 4 10 10 Corruption Purged . | . . . . . . . . . . . . . . Corruption Blocked . | . . . . . . . . . . . . . . Effects 74 | . . . . . . . 25 6 5 15 15 5 3 Message Errors 19 | . . . . . . . 7 1 1 5 2 2 1 Matter Fused 16 | . . . . . . . 6 . . 1 6 2 1 Heat Flow Errors 8 | . . . . . . . 3 . . 2 2 1 . Energy Discharges 6 | . . . . . . . 1 2 . 2 1 . . Parts Rejected 2 | . . . . . . . 1 1 . . . . . Parts Fused 2 | . . . . . . . . . . 1 1 . . Data Loss (minor) 7 | . . . . . . . 1 1 2 1 2 . . Data Loss (major) 5 | . . . . . . . . 1 1 2 . . 1 Misfires 5 | . . . . . . . 4 . . 1 . . . Alerts 1 | . . . . . . . . . 1 . . . . Weapon Failures 3 | . . . . . . . 2 . . . 1 . . Overload Shots . | . . . . . . . . . . . . . . Overflow Damage 77 | . . . . . . 13 . 26 9 29 . . . Projectiles 51 | . . . . . . 13 . . 9 29 . . . Explosions 26 | . . . . . . . . 26 . . . . . Melee . | . . . . . . . . . . . . . . Knockbacks 2 | . . . . . . 2 . . . . . . . Impact . | . . . . . . . . . . . . . . Kinetic 2 | . . . . . . 2 . . . . . . . Secondary . | . . . . . . . . . . . . . . Self-Inflicted Damage 208 | . . 4 . . . . . 204 . . . . . Shots 9 | . . . . . . . . 9 . . . . . Rammed 4 | . . 2 1 . 1 . . . . . . . . Targets Rammed 4 | . . 2 1 . 1 . . . . . . . . Kicked . | . . . . . . . . . . . . . . Crushed . | . . . . . . . . . . . . . . Highest Temperature 358 | . 158 225 70 3 . 358 176 . . 166 204 177 . Average Temperature 58 | . 67 62 25 2 . 137 25 . . 39 99 98 . Received Heat Transfer 1218 | . 192 381 81 . 27 171 66 . . 63 237 . . Effects 1 | . . . . . . . . . . . 1 . . Interference 1 | . . . . . . . . . . . 1 . . Siege Activations . | . . . . . . . . . . . . . . Robots Corrupted . | . . . . . . . . . . . . . . Combat Hostiles . | . . . . . . . . . . . . . . Parts Fried . | . . . . . . . . . . . . . . Impact Corruptions . | . . . . . . . . . . . . . . Robots Melted . | . . . . . . . . . . . . . . Combat Hostiles . | . . . . . . . . . . . . . . Parts Melted 7 | . . 2 . . . 2 2 . . 1 . . . Heat Transferred 3746 | . 650 700 999 74 222 555 . . 100 261 148 . 37 Parts Sabotaged . | . . . . . . . . . . . . . . Parts Stolen . | . . . . . . . . . . . . . . Parts Stripped . | . . . . . . . . . . . . . . Power Chain Reactions . | . . . . . . . . . . . . . . Alert | -11 -10 -9 -8 -7 -6 -5 -4 -4 -4 -4 -4 -4 -3 ------- Run | Yrd Mat Mat Mat Fac Fac Fac Fac Was Fac Upp Upp Zhi Pro Peak Influence 400 | . 222 400 170 64 60 108 399 206 106 . . . . Initial 167 | . . 9 167 39 . 29 51 124 81 . . . . Average 119 | . 77 194 53 38 3 64 160 160 88 . . . . Maximum Alert Level 2 | . 1 2 . . . . 1 1 . . . . . Low Security (%) 77 | 100 94 51 100 100 100 100 62 81 100 . . . . Level 1 21 | . 5 43 . . . . 37 18 . . . . . Level 2 1 | . . 4 . . . . . . . . . . . Level 3 . | . . . . . . . . . . . . . . Level 4 . | . . . . . . . . . . . . . . Level 5 . | . . . . . . . . . . . . . . High Security . | . . . . . . . . . . . . . . Max Security . | . . . . . . . . . . . . . . Squads Dispatched 25 | . 1 2 4 3 4 2 7 . 1 . 1 . . Investigation 1 | . 1 . . . . . . . . . . . . Extermination 3 | . . . . . . . 3 . . . . . . Reinforcement 11 | . . 2 4 . 3 1 1 . . . . . . Assault 2 | . . . . . 1 . . . . . 1 . . Garrison 8 | . . . . 3 . 1 3 . 1 . . . . Intercept . | . . . . . . . . . . . . . . Searches Triggered . | . . . . . . . . . . . . . . Construction Impeded . | . . . . . . . . . . . . . . Haulers Reinforced 1 | . . . . . . . 1 . . . . . . Active Scanning Responses . | . . . . . . . . . . . . . . Cargo Convoy Interrupts . | . . . . . . . . . . . . . . Stealth | -11 -10 -9 -8 -7 -6 -5 -4 -4 -4 -4 -4 -4 -3 --------- Run | Yrd Mat Mat Mat Fac Fac Fac Fac Was Fac Upp Upp Zhi Pro Distress Signals 13 | . 1 4 3 . 2 1 2 . . . . . . Communications Jammed . | . . . . . . . . . . . . . . Distress Signals . | . . . . . . . . . . . . . . Times Spotted 168 | . 14 37 12 6 16 19 32 6 4 3 14 . 5 Peak Tracking Total 16 | . 3 4 3 2 5 5 5 3 6 3 16 . 5 Tactical Retreats 10 | . . 3 . . 1 1 1 . . . 4 . . Traps | -11 -10 -9 -8 -7 -6 -5 -4 -4 -4 -4 -4 -4 -3 ------- Run | Yrd Mat Mat Mat Fac Fac Fac Fac Was Fac Upp Upp Zhi Pro Traps Triggered 2 | . . . . . . . 2 . . . . . . Indirectly . | . . . . . . . . . . . . . . Trap Hack Attempts . | . . . . . . . . . . . . . . Triggered . | . . . . . . . . . . . . . . Disarmed . | . . . . . . . . . . . . . . Reprogrammed . | . . . . . . . . . . . . . . Reused . | . . . . . . . . . . . . . . Traps Extracted . | . . . . . . . . . . . . . . Installed . | . . . . . . . . . . . . . . Triggered . | . . . . . . . . . . . . . . Machines | -11 -10 -9 -8 -7 -6 -5 -4 -4 -4 -4 -4 -4 -3 ---------- Run | Yrd Mat Mat Mat Fac Fac Fac Fac Was Fac Upp Upp Zhi Pro Machines Disabled 7 | . . 2 . . . . 5 . . . . . . Max in Single Turn 2 | . . 1 . . . . 2 . . . . . . Garrison Access 2 | . . . . . 2 . . . . . . . . Machines Repaired . | . . . . . . . . . . . . . . Machines Dismantled . | . . . . . . . . . . . . . . Machines Sabotaged . | . . . . . . . . . . . . . . Overloaded Fab Kills . | . . . . . . . . . . . . . . Hacking | -11 -10 -9 -8 -7 -6 -5 -4 -4 -4 -4 -4 -4 -3 --------- Run | Yrd Mat Mat Mat Fac Fac Fac Fac Was Fac Upp Upp Zhi Pro Machines Accessed 29 | . 5 9 1 3 1 . 2 . 2 1 . 5 . Terminals 19 | . 5 9 1 3 . . 1 . . . . . . Fabricators . | . . . . . . . . . . . . . . Repair Stations 2 | . . . . . . . 1 . 1 . . . . Recycling Units . | . . . . . . . . . . . . . . Scanalyzers . | . . . . . . . . . . . . . . Garrison Access 2 | . . . . . 1 . . . 1 . . . . Total Hacks 75 | . 11 22 3 8 2 . 6 . 4 1 . 18 . Successful 45 | . 5 13 2 3 1 . 2 . . 1 . 18 . Failed 30 | . 6 9 1 5 1 . 4 . 4 . . . . Catastrophic 6 | . 1 1 . 1 . . 2 . 1 . . . . Database Lockouts . | . . . . . . . . . . . . . . Manual 29 | . 9 16 1 1 . . 2 . . . . . . Terminals 48 | . 11 22 3 8 . . 4 . . . . . . Fabricators . | . . . . . . . . . . . . . . Repair Stations 4 | . . . . . . . 2 . 2 . . . . Recycling Units . | . . . . . . . . . . . . . . Scanalyzers . | . . . . . . . . . . . . . . Garrison Access 4 | . . . . . 2 . . . 2 . . . . Terminal Hacks 34 | . 2 9 1 2 . . 1 . . 1 . 18 . Record 6 | . . . . . . . . . . . . 6 . Part Schematic 5 | . . 1 . . . . . . . . . 4 . Robot Analysis 4 | . . . . . . . . . . . . 4 . Prototype ID Bank 9 | . 1 4 . . . . . . . . . 4 . Open Door 1 | . . . . . . . . . . 1 . . . Level Access Points 2 | . . . . 1 . . 1 . . . . . . Branch Access Points 1 | . . 1 . . . . . . . . . . . Unreport Threat 2 | . . 1 1 . . . . . . . . . . Locate Traps 1 | . . . . 1 . . . . . . . . . Hauler Manifests 2 | . 1 1 . . . . . . . . . . . Registered Components 1 | . . 1 . . . . . . . . . . . Fabricator Hacks . | . . . . . . . . . . . . . . Repair Station Hacks . | . . . . . . . . . . . . . . Recycling Unit Hacks . | . . . . . . . . . . . . . . Scanalyzer . | . . . . . . . . . . . . . . Garrison Access Hacks 1 | . . . . . 1 . . . . . . . . Seal Access 1 | . . . . . 1 . . . . . . . . Unauthorized Hacks 10 | . 3 4 1 1 . . 1 . . . . . . Terminals 9 | . 3 4 1 1 . . . . . . . . . Assimilate 2 | . 1 1 . . . . . . . . . . . Botnet 7 | . 2 3 1 1 . . . . . . . . . Fabricators . | . . . . . . . . . . . . . . Repair Stations 1 | . . . . . . . 1 . . . . . . Mechanics 1 | . . . . . . . 1 . . . . . . Recycling Units . | . . . . . . . . . . . . . . Scanalyzers . | . . . . . . . . . . . . . . Garrison Access . | . . . . . . . . . . . . . . Data Cores Recovered 3 | . . . . 1 . . 2 . . . . . . Used . | . . . . . . . . . . . . . . Hacking Detections 22 | . 5 9 1 3 1 . 1 . 2 . . . . Full Trace Events 1 | . 1 . . . . . . . . . . . . Feedback Events . | . . . . . . . . . . . . . . Feedback Blocked . | . . . . . . . . . . . . . . Robot Schematics Acquired . | . . . . . . . . . . . . . . Robots Built . | . . . . . . . . . . . . . . Authchips . | . . . . . . . . . . . . . . Time . | . . . . . . . . . . . . . . Total Robot Build Rating . | . . . . . . . . . . . . . . Part Schematics Acquired 5 | . . 1 . . . . . . . . . 4 . Parts Built . | . . . . . . . . . . . . . . Authchips . | . . . . . . . . . . . . . . Time . | . . . . . . . . . . . . . . Total Part Build Rating . | . . . . . . . . . . . . . . Parts Repaired . | . . . . . . . . . . . . . . Time . | . . . . . . . . . . . . . . Parts Recycled . | . . . . . . . . . . . . . . Recycled Matter . | . . . . . . . . . . . . . . Retrieved Matter . | . . . . . . . . . . . . . . Retrieved Components . | . . . . . . . . . . . . . . Parts Scanalyzed . | . . . . . . . . . . . . . . Part Schematics Acquired . | . . . . . . . . . . . . . . Parts Damaged . | . . . . . . . . . . . . . . Bothacking | -11 -10 -9 -8 -7 -6 -5 -4 -4 -4 -4 -4 -4 -3 ------------ Run | Yrd Mat Mat Mat Fac Fac Fac Fac Was Fac Upp Upp Zhi Pro Used RIF Installer . | . . . . . . . . . . . . . . Robots Hacked . | . . . . . . . . . . . . . . Non-combat . | . . . . . . . . . . . . . . Combat . | . . . . . . . . . . . . . . Robot Hacks Applied . | . . . . . . . . . . . . . . Relay Couplers Released 2 | . . . . . 2 . . . . . . . . Machine Destruction 2 | . . . . . 2 . . . . . . . . Fabnet Peak Effective % . | . . . . . . . . . . . . . . Robots Rewired . | . . . . . . . . . . . . . . Allies Hacked . | . . . . . . . . . . . . . . Hacks Repelled . | . . . . . . . . . . . . . . Allies | -11 -10 -9 -8 -7 -6 -5 -4 -4 -4 -4 -4 -4 -3 -------- Run | Yrd Mat Mat Mat Fac Fac Fac Fac Was Fac Upp Upp Zhi Pro Total Allies 3 | . 1 1 . . . . . 1 . . . . . Largest Group 2 | . 1 2 . . . . . 1 . . . . . Highest-Rated Group 46 | . 10 20 . . . . . 46 . . . . . Highest-Rated Ally 46 | . 10 10 . . . . . 46 . . . . . Total Orders . | . . . . . . . . . . . . . . Ally Attacks 11 | . . . . . . . . 11 . . . . . Total Damage 293 | . . . . . . . . 293 . . . . . Kills . | . . . . . . . . . . . . . . Allies Corrupted . | . . . . . . . . . . . . . . Allies Melted . | . . . . . . . . . . . . . . Intel | -11 -10 -9 -8 -7 -6 -5 -4 -4 -4 -4 -4 -4 -3 ------- Run | Yrd Mat Mat Mat Fac Fac Fac Fac Was Fac Upp Upp Zhi Pro Robot Analysis Total 4 | . . . . . . . . . . . . 4 . Derelict Logs Recovered 2 | . . . . . . . . . . 2 . . . Drone Launches . | . . . . . . . . . . . . . . Drone Recoveries . | . . . . . . . . . . . . . . Exploration | -11 -10 -9 -8 -7 -6 -5 -4 -4 -4 -4 -4 -4 -3 ------------- Run | Yrd Mat Mat Mat Fac Fac Fac Fac Was Fac Upp Upp Zhi Pro Turns Passed 8145 | 49 559 1828 635 574 514 399 1382 318 265 741 636 182 63 Spaces Moved 4908 | 39 316 977 229 318 250 198 885 263 218 528 416 192 79 Core 258 | 4 . . . . . . . 135 16 6 96 . 1 Treads 1068 | . . 109 229 318 250 162 . . . . . . . Legs 2200 | . 144 . . . . 36 885 128 172 522 313 . . Wheels 1075 | 35 172 868 . . . . . . . . . . . Hover 307 | . . . . . . . . . 30 . 7 192 78 Flight . | . . . . . . . . . . . . . . Fastest Speed 40 | 50 90 116 160 160 160 120 120 50 40 120 50 60 60 Average Speed 129 | 88 127 132 160 160 160 166 120 84 103 126 143 89 61 Slowest Speed 250 | 100 135 160 160 160 160 240 120 120 120 250 190 120 200 Overloaded Moves . | . . . . . . . . . . . . . . Propulsion Burnouts . | . . . . . . . . . . . . . . Robots Hopped . | . . . . . . . . . . . . . . Cave-ins Triggered . | . . . . . . . . . . . . . . Teleports 1 | . . . . . . . . . . . . 1 . Exploration Rate (%) 36 | 3 63 77 30 11 12 10 23 86 4 56 53 62 16 Regions Visited 13 Branch Regions 4 Pre-discovered Areas 3 | . . . . . . . . . . . . 3 . Known Exits Taken 1 | . . . . 1 . . . . . . . . . Unknown Exits Taken 10 | 1 1 1 1 . 1 1 . . 1 1 1 1 . Scrap Searched 6 | . . . . . . . . . . 2 4 . . Spaces Dug 29 | . . . . . . 1 1 4 . 22 1 . . Terrain Destroyed 206 | . . . . . . 3 55 87 6 54 1 . . Melee 3 | . . . . . . 1 1 . . . 1 . . Projectile 43 | . . . . . . 2 21 5 6 9 . . . AOE 160 | . . . . . . . 33 82 . 45 . . . Terrain Rammed . | . . . . . . . . . . . . . . Walls Destroyed . | . . . . . . . . . . . . . . Machines Disabled . | . . . . . . . . . . . . . . Actions | -11 -10 -9 -8 -7 -6 -5 -4 -4 -4 -4 -4 -4 -3 --------- Run | Yrd Mat Mat Mat Fac Fac Fac Fac Was Fac Upp Upp Zhi Pro Total 6210 | 50 398 1342 432 378 349 239 1151 314 243 575 449 201 89 Wait 693 | . 23 182 165 56 74 4 165 8 6 10 . . . Move 4896 | 38 315 976 228 317 249 197 885 262 217 527 415 191 79 Hop . | . . . . . . . . . . . . . . Pick Up 93 | 6 9 34 2 1 7 4 11 1 2 8 5 3 . Fast Attach 43 | 6 1 2 . 1 2 1 8 4 4 6 6 2 . Attach 43 | . . 6 2 1 1 8 2 4 6 1 4 3 5 Detach 14 | . . 1 . . 1 2 . . 1 3 3 2 1 Swap 47 | . 7 13 3 . 2 2 18 2 . . . . . Drop 91 | . 3 38 2 . 5 4 26 . 1 2 10 . . Fire 281 | . 40 88 29 2 7 16 35 33 6 18 5 . 2 Melee 5 | . . . . . . 1 1 . . . 1 . 2 Ram 2 | . . 2 . . . . . . . . . . . Kick . | . . . . . . . . . . . . . . Crush 2 | . . . 1 . 1 . . . . . . . . Escape Stasis . | . . . . . . . . . . . . . . Rewire . | . . . . . . . . . . . . . . Trap . | . . . . . . . . . . . . . . Miscellaneous . | . . . . . . . . . . . . . . Route ------- -11/Scrapyard -10/Materials (discovered 4 exits: *Mat x2 / [*Min x2]) -9/Materials (discovered 2 exits: *Mat / *Min) -8/Materials (discovered 2 exits: *Fac / [*Sto]) -7/Factory (discovered 5 exits: *Fac x4 / [*Low]) -6/Factory -5/Factory -4/Factory (discovered 5 exits: *Res x4 / *Upp) -4/Waste -4/Factory -4/Upper Caves -4/Upper Caves (discovered 2 exits: *Res / *Zhi) -4/Zhirov -3/Proximity Caves History --------- Turn | Location | Event 28 | -11/Scrapyard | Discovered new exit (range 15) 50 | -11/Scrapyard | Entered Materials 95 | -10/Materials | Discovered new exit (range 16) 257 | -10/Materials | Discovered new exit (range 16) 301 | -10/Materials | Build established: Mutant 442 | -10/Materials | Discovered new exit (range 9) 544 | -10/Materials | Discovered new exit (range 8) 609 | -10/Materials | Entered another Materials area 609 | -9/Materials | Accompanied by 1 ally 609 | -9/Materials | Evolved 2 slots: Propulsion x1, Weapon x1 1169 | -9/Materials | Build established: Tank 1629 | -9/Materials | Discovered new exit (range 6) 1801 | -9/Materials | Identified exit to Mines 2095 | -9/Materials | Discovered new exit (range 14) 2437 | -9/Materials | Entered another Materials area 2437 | -8/Materials | Evolved 2 slots: Utility x2 2743 | -8/Materials | Build established: Scavenger-Tank 2880 | -8/Materials | Discovered new exit (range 15) 2920 | -8/Materials | Discovered new exit (range 10) 2921 | -8/Materials | Met 7R-MNS 3072 | -8/Materials | Entered Factory 3072 | -7/Factory | Evolved 2 slots: Power x1, Utility x1 3073 | -7/Factory | Caught up to 7R-MNS 3220 | -7/Factory | Identified exit to Factory 3279 | -7/Factory | Discovered new exit (range 5) 3426 | -7/Factory | Garrison activated, responded to threat 3646 | -7/Factory | Entered another Factory area 3646 | -6/Factory | Evolved 2 slots: Propulsion x1, Utility x1 3647 | -6/Factory | Caught up to 7R-MNS 4058 | -6/Factory | Discovered new exit (range 12) 4160 | -6/Factory | Entered another Factory area 4160 | -5/Factory | Evolved 2 slots: Utility x2 4161 | -5/Factory | Caught up to 7R-MNS 4324 | -5/Factory | Garrison activated, responded to threat 4531 | -5/Factory | Lost 3 parts (2n1u) 4531 | -5/Factory | Discovered new exit (range 10) 4559 | -5/Factory | Entered another Factory area 4559 | -4/Factory | Evolved 2 slots: Propulsion x1, Utility x1 4560 | -4/Factory | Caught up to 7R-MNS 4596 | -4/Factory | Identified exit to Research 5054 | -4/Factory | Garrison activated, responded to threat 5694 | -4/Factory | Discovered new exit (range 5) 5941 | -4/Factory | Sucked down chute 5941 | -4/Factory | Entered Waste 5942 | -4/Waste | Met a frightened Derelict 5971 | -4/Waste | Spotted C-40 Crusher 5978 | -4/Waste | Destroyed C-40 Crusher 5990 | -4/Waste | Spotted C-40 Crusher 6022 | -4/Waste | Crushed by Compactor (1 part destroyed, 2 dropped) 6022 | -4/Waste | Destroyed C-40 Crusher 6031 | -4/Waste | Spotted C-40 Crusher 6049 | -4/Waste | Spotted C-40 Crusher 6115 | -4/Waste | Spotted C-40 Crusher 6131 | -4/Waste | Spotted C-40 Crusher 6174 | -4/Waste | Crushed by Compactor (1 part destroyed, 1 dropped) 6177 | -4/Waste | Crushed by Compactor (1 part destroyed, 1 dropped) 6180 | -4/Waste | Crushed by Compactor (1 part destroyed, 2 dropped) 6183 | -4/Waste | Crushed by Compactor (1 part destroyed, 2 dropped) 6183 | -4/Waste | Crushed by Compactor (1 part destroyed, 2 dropped) 6184 | -4/Waste | Destroyed C-40 Crusher 6186 | -4/Waste | Crushed by Compactor (1 part destroyed, 2 dropped) 6187 | -4/Waste | Crushed by Compactor (1 part destroyed, 1 dropped) 6218 | -4/Waste | Lost 8 parts (3n4u1w) 6239 | -4/Waste | Crushed by Compactor (1 part destroyed) 6249 | -4/Waste | Discovered new exit (range 13) 6259 | -4/Waste | Entered Factory 6433 | -4/Factory | Discovered new exit (range 15) 6469 | -4/Factory | Garrison activated, responded to threat 6491 | -4/Factory | Build established: Mutant 6524 | -4/Factory | Entered Upper Caves 6613 | -4/Upper Caves | Learned Research terminal intel 6665 | -4/Upper Caves | Spotted B-86 Titan 6689 | -4/Upper Caves | Attracted the attention of an 0b10 checkpoint 6807 | -4/Upper Caves | Learned location of 1 exit from Research 6911 | -4/Upper Caves | Discovered new exit (range 4) 7060 | -4/Upper Caves | Build established: Gunner 7265 | -4/Upper Caves | Entered another Upper Caves area 7366 | -4/Upper Caves | Encountered a Warlord checkpoint 7458 | -4/Upper Caves | Discovered exit to Research (range 12) 7713 | -4/Upper Caves | Build established: Derelict-Gunner 7724 | -4/Upper Caves | Spotted B-86 Titan 7803 | -4/Upper Caves | Attracted the attention of an 0b10 outpost 7806 | -4/Upper Caves | Attracted the attention of an 0b10 checkpoint 7814 | -4/Upper Caves | System corruption reached 10% 7831 | -4/Upper Caves | Core integrity fell below 50% 7858 | -4/Upper Caves | Lost 9 parts (5n3u1w) 7885 | -4/Upper Caves | Discovered new exit (range 16) 7887 | -4/Upper Caves | Core integrity fell below 20% 7901 | -4/Upper Caves | Entered Zhirov 7901 | -4/Zhirov | Discovered new exit (range 4) 7912 | -4/Zhirov | Met Zhirov 7933 | -4/Zhirov | Learned location of Testing (-2) 7933 | -4/Zhirov | Learned location of Quarantine (-3) 7933 | -4/Zhirov | Learned location of Command (-1) 7939 | -4/Zhirov | Zhirov requested help retrieving the SGEMP Prototype 7979 | -4/Zhirov | Found Alien Artifact 7996 | -4/Zhirov | Found Alien Artifact 8048 | -4/Zhirov | Identified Integrated Dissipator 8048 | -4/Zhirov | Installed Integrated Dissipator, increased core heat dissipation (+20) 8049 | -4/Zhirov | Identified Transdimensional Reconstructor 8049 | -4/Zhirov | Warped through subspace 8083 | -4/Zhirov | Entered Proximity Caves 8104 | -3/Proximity Caves | Build established: Mutant 8146 | -3/Proximity Caves | Destroyed by S-43 Plague with Heavy Machine Gun Last Messages --------------- 08035_ %T8 %LKZ4MUC=SYIW:W4DL 08048_ Identified Integrated Dissipator. 08048_ Integrated Dissipator installed, core heat dissipation increased (+20). 08049_ Identified Transdimensional Reconstructor. 08049_ Warped through subspace. 08062_ Zhirov uses his terminal. 08072_ =SL8>H WGXGPAN7%AID